[Event "*** SCC Grand Prix: Titled Tuesday Blitz"]
[Site "Chess.com"]
[Date "2020.06.02"]
[Round "1"]
[White "korbul"]
[Black "pfalcon1949"]
[Result "1-0"]
[WhiteElo "2478"]
[BlackElo "2013"]
[TimeControl "180+1"]
[EndTime "10:07:36 PDT"]
[Termination "korbul won by resignation"]

1. d4 {[%clk 0:03:00.9]} 1... Nf6 {[%clk 0:02:59.1]} 2. c4 {[%clk 0:02:58.1]}
2... e6 {[%clk 0:02:59.2]} 3. Nf3 {[%clk 0:02:56.6]} 3... Bb4+ {[%clk
0:02:58.5]} 4. Nbd2 {[%clk 0:02:55.9]} 4... Qe7 {[%clk 0:02:58.2]} 5. g3 {[%clk
0:02:53.7]} 5... b6 {[%clk 0:02:58]} 6. Bg2 {[%clk 0:02:53.5]} 6... Bb7 {[%clk
0:02:57.8]} 7. O-O {[%clk 0:02:53]} 7... Bxd2 {[%clk 0:02:51.9]} 8. Bxd2 {[%clk
0:02:51.4]} 8... d6 {[%clk 0:02:52.8]} 9. Rc1 {[%clk 0:02:44]} 9... Nbd7 {[%clk
0:02:52.7]} 10. b3 {[%clk 0:02:41.6]} 10... O-O {[%clk 0:02:52]} 11. Bc3 {[%clk
0:02:41.5]} 11... Ne4 {[%clk 0:02:51.7]} 12. Bb2 {[%clk 0:02:41.4]} 12... f5
{[%clk 0:02:51.8]} 13. Ne1 {[%clk 0:02:39.9]} 13... Ndf6 {[%clk 0:02:38.1]} 14.
Nd3 {[%clk 0:02:38.6]} 14... Rab8 {[%clk 0:02:30.8]} 15. Nf4 {[%clk 0:02:35.3]}
15... g5 {[%clk 0:02:24.1]} 16. Nd3 {[%clk 0:02:35]} 16... g4 {[%clk 0:02:15.5]}
17. f3 {[%clk 0:02:33.2]} 17... Ng5 {[%clk 0:02:12.7]} 18. Qd2 {[%clk
0:02:31.5]} 18... Qg7 {[%clk 0:02:09.6]} 19. Nf4 {[%clk 0:02:30.5]} 19... Rbe8
{[%clk 0:02:03.5]} 20. c5 {[%clk 0:02:27.4]} 20... Nd5 {[%clk 0:01:44.3]} 21.
Nxd5 {[%clk 0:02:15]} 21... Bxd5 {[%clk 0:01:44.3]} 22. cxd6 {[%clk 0:02:06.3]}
22... cxd6 {[%clk 0:01:43.4]} 23. Rc2 {[%clk 0:02:04.5]} 23... Rc8 {[%clk
0:01:42.6]} 24. Rxc8 {[%clk 0:01:36.5]} 24... Rxc8 {[%clk 0:01:40.9]} 25. Bc1
{[%clk 0:01:11.4]} 25... h6 {[%clk 0:01:33.1]} 26. Ba3 {[%clk 0:01:11.1]} 26...
Qd7 {[%clk 0:01:28.5]} 27. Qf4 {[%clk 0:01:10.2]} 27... Rd8 {[%clk 0:01:10.6]}
28. fxg4 {[%clk 0:01:09.6]} 28... fxg4 {[%clk 0:01:06.2]} 29. Qxg4 {[%clk
0:01:07.7]} 29... Bxg2 {[%clk 0:01:05.7]} 30. Kxg2 {[%clk 0:01:07.3]} 30... Qc6+
{[%clk 0:01:02.7]} 31. Kg1 {[%clk 0:01:01.6]} 31... Qe4 {[%clk 0:01:00.5]} 32.
Qxe4 {[%clk 0:00:57.8]} 32... Nxe4 {[%clk 0:01:01.4]} 33. Rc1 {[%clk 0:00:57.6]}
33... Rd7 {[%clk 0:00:57.4]} 34. Rc8+ {[%clk 0:00:56.8]} 34... Kg7 {[%clk
0:00:56.9]} 35. Kg2 {[%clk 0:00:57.7]} 35... Rf7 {[%clk 0:00:47.9]} 36. Kg1
{[%clk 0:00:48.9]} 36... d5 {[%clk 0:00:48.3]} 37. Bc1 {[%clk 0:00:43.9]} 37...
Nf2 {[%clk 0:00:39.7]} 38. Bf4 {[%clk 0:00:44.8]} 38... Nh3+ {[%clk 0:00:38.9]}
39. Kg2 {[%clk 0:00:44.6]} 39... Nxf4+ {[%clk 0:00:39.3]} 40. gxf4 {[%clk
0:00:44.9]} 40... Rxf4 {[%clk 0:00:39.8]} 41. Rc7+ {[%clk 0:00:45.1]} 41... Rf7
{[%clk 0:00:40.3]} 42. Rxf7+ {[%clk 0:00:43.4]} 42... Kxf7 {[%clk 0:00:40.1]}
43. Kf3 {[%clk 0:00:43.8]} 43... Kf6 {[%clk 0:00:40]} 44. Kf4 {[%clk 0:00:44.2]}
44... b5 {[%clk 0:00:37.5]} 45. b4 {[%clk 0:00:44]} 45... a6 {[%clk 0:00:35.2]}
46. a3 {[%clk 0:00:43.8]} 46... Kf7 {[%clk 0:00:21.3]} 47. Ke5 {[%clk
0:00:41.8]} 47... Ke7 {[%clk 0:00:21.4]} 48. e3 {[%clk 0:00:38.1]} 48... Kd7
{[%clk 0:00:20.4]} 49. Kf6 {[%clk 0:00:37.7]} 49... Kd6 {[%clk 0:00:19.5]} 50.
Kg6 {[%clk 0:00:37.7]} 50... e5 {[%clk 0:00:19.8]} 51. Kxh6 {[%clk 0:00:37.6]}
51... Ke6 {[%clk 0:00:14.6]} 52. Kg6 {[%clk 0:00:36.8]} 52... exd4 {[%clk
0:00:11.3]} 53. exd4 {[%clk 0:00:36.5]} 53... Kd6 {[%clk 0:00:10.6]} 54. h4
{[%clk 0:00:36.2]} 54... Kc6 {[%clk 0:00:11.5]} 55. h5 {[%clk 0:00:36.1]} 55...
Kb6 {[%clk 0:00:12.4]} 56. h6 {[%clk 0:00:36.3]} 56... a5 {[%clk 0:00:13.3]} 57.
h7 {[%clk 0:00:36.6]} 57... axb4 {[%clk 0:00:12.7]} 58. axb4 {[%clk 0:00:36.2]}
58... Kc6 {[%clk 0:00:13.6]} 1-0

[Event "*** SCC Grand Prix: Titled Tuesday Blitz"]
[Site "Chess.com"]
[Date "2020.06.02"]
[Round "1"]
[White "sunofadawn"]
[Black "aleksa74"]
[Result "1-0"]
[WhiteElo "2349"]
[BlackElo "2663"]
[TimeControl "180+1"]
[EndTime "10:07:38 PDT"]
[Termination "sunofadawn won by resignation"]

1. d4 {[%clk 0:02:59.9]} 1... Nf6 {[%clk 0:02:59.6]} 2. c4 {[%clk 0:03:00.2]}
2... e6 {[%clk 0:02:59.7]} 3. g3 {[%clk 0:03:00.4]} 3... d5 {[%clk 0:02:58]} 4.
Bg2 {[%clk 0:02:59.9]} 4... Be7 {[%clk 0:02:58]} 5. Nf3 {[%clk 0:02:57.8]} 5...
O-O {[%clk 0:02:58.6]} 6. Bf4 {[%clk 0:02:57]} 6... dxc4 {[%clk 0:02:54.9]} 7.
Qc2 {[%clk 0:02:56.9]} 7... Nd5 {[%clk 0:02:47.4]} 8. Qxc4 {[%clk 0:02:56.2]}
8... Nxf4 {[%clk 0:02:46.4]} 9. gxf4 {[%clk 0:02:57.1]} 9... Nc6 {[%clk
0:02:40.3]} 10. O-O {[%clk 0:02:55.2]} 10... Nb4 {[%clk 0:02:34.8]} 11. e3
{[%clk 0:02:49]} 11... Qd5 {[%clk 0:02:24.6]} 12. Nbd2 {[%clk 0:02:47.3]} 12...
Qxc4 {[%clk 0:02:11.6]} 13. Nxc4 {[%clk 0:02:47]} 13... c6 {[%clk 0:01:52.8]}
14. Rfd1 {[%clk 0:02:45.1]} 14... Nd5 {[%clk 0:01:49.6]} 15. Nfe5 {[%clk
0:02:41.5]} 15... f6 {[%clk 0:01:48.9]} 16. Nd3 {[%clk 0:02:41.3]} 16... Bd7
{[%clk 0:01:47.1]} 17. Rac1 {[%clk 0:02:38]} 17... Be8 {[%clk 0:01:46.1]} 18.
Na5 {[%clk 0:02:36.8]} 18... Rb8 {[%clk 0:01:42.6]} 19. a3 {[%clk 0:02:36.6]}
19... Bh5 {[%clk 0:01:35.8]} 20. Rd2 {[%clk 0:02:35]} 20... h6 {[%clk
0:01:06.2]} 21. b4 {[%clk 0:02:33.5]} 21... g5 {[%clk 0:01:06]} 22. fxg5 {[%clk
0:02:31.5]} 22... hxg5 {[%clk 0:01:04.8]} 23. Nc5 {[%clk 0:02:29.9]} 23... Bxc5
{[%clk 0:01:02.2]} 24. dxc5 {[%clk 0:02:24.7]} 24... Rf7 {[%clk 0:00:50.6]} 25.
Nc4 {[%clk 0:02:18.3]} 25... Rh7 {[%clk 0:00:50.3]} 26. Nd6 {[%clk 0:02:12.9]}
26... Rd8 {[%clk 0:00:35.2]} 27. Rcd1 {[%clk 0:02:08.5]} 27... Rdd7 {[%clk
0:00:34.8]} 28. b5 {[%clk 0:02:01.9]} 28... Bxd1 {[%clk 0:00:34.3]} 29. Rxd1
{[%clk 0:02:01]} 29... Rh4 {[%clk 0:00:31.2]} 30. bxc6 {[%clk 0:01:54.4]} 30...
bxc6 {[%clk 0:00:31.1]} 31. Rb1 {[%clk 0:01:52.8]} 31... Ra4 {[%clk 0:00:30.1]}
32. Rb8+ {[%clk 0:01:52.3]} 32... Kg7 {[%clk 0:00:28]} 33. Be4 {[%clk
0:01:49.4]} 33... Rxa3 {[%clk 0:00:21.1]} 34. Ne8+ {[%clk 0:01:47.5]} 34... Kf7
{[%clk 0:00:20.6]} 35. Nd6+ {[%clk 0:01:46.7]} 35... Kg7 {[%clk 0:00:20.1]} 36.
Ne8+ {[%clk 0:01:46.5]} 36... Kh6 {[%clk 0:00:18.8]} 37. Rc8 {[%clk 0:01:41.5]}
37... f5 {[%clk 0:00:18.4]} 38. Bf3 {[%clk 0:01:38.5]} 38... g4 {[%clk
0:00:18.5]} 39. Bxd5 {[%clk 0:01:36.2]} 39... Rxd5 {[%clk 0:00:16.4]} 40. Rxc6
{[%clk 0:01:35.8]} 40... Rc3 {[%clk 0:00:16.2]} 41. Rxe6+ {[%clk 0:01:33.6]}
41... Kg5 {[%clk 0:00:16.8]} 42. c6 {[%clk 0:01:32.5]} 42... Rd1+ {[%clk
0:00:16.9]} 43. Kg2 {[%clk 0:01:32.6]} 43... Rcc1 {[%clk 0:00:17.6]} 44. f4+
{[%clk 0:01:27.7]} 44... gxf3+ {[%clk 0:00:17.4]} 45. Kxf3 {[%clk 0:01:28.1]}
45... Rd2 {[%clk 0:00:17.6]} 46. h4+ {[%clk 0:01:24.2]} 46... Kxh4 {[%clk
0:00:15.3]} 47. Kf4 {[%clk 0:01:24.7]} 47... Rdc2 {[%clk 0:00:15]} 48. c7 {[%clk
0:01:24.2]} 48... Kh3 {[%clk 0:00:13.1]} 49. Kxf5 {[%clk 0:01:21.8]} 49... a5
{[%clk 0:00:13.4]} 50. e4 {[%clk 0:01:18.3]} 50... a4 {[%clk 0:00:13.6]} 51. Ra6
{[%clk 0:01:18.4]} 51... a3 {[%clk 0:00:11]} 52. Rxa3+ {[%clk 0:01:17.9]} 52...
Kg2 {[%clk 0:00:10.7]} 53. e5 {[%clk 0:01:15.9]} 53... Rf1+ {[%clk 0:00:08.1]}
54. Ke6 {[%clk 0:01:15.4]} 54... Rf8 {[%clk 0:00:08.8]} 55. Ke7 {[%clk
0:01:14.5]} 55... Rh8 {[%clk 0:00:07]} 56. Rd3 {[%clk 0:01:08.1]} 56... Rh7+
{[%clk 0:00:06.2]} 57. Kd8 {[%clk 0:01:07.8]} 57... Rh8 {[%clk 0:00:06.5]} 58.
e6 {[%clk 0:01:02.3]} 58... Rxc7 {[%clk 0:00:02.7]} 59. Kxc7 {[%clk 0:01:01.5]}
59... Rxe8 {[%clk 0:00:03.3]} 1-0

[Event "*** SCC Grand Prix: Titled Tuesday Blitz"]
[Site "Chess.com"]
[Date "2020.06.02"]
[Round "1"]
[White "ashookk"]
[Black "bait_or_mate"]
[Result "1/2-1/2"]
[WhiteElo "2206"]
[BlackElo "2542"]
[TimeControl "180+1"]
[EndTime "10:07:39 PDT"]
[Termination "Game drawn by repetition"]

1. Nf3 {[%clk 0:02:53.6]} 1... d5 {[%clk 0:02:39.7]} 2. c4 {[%clk 0:02:53.3]}
2... e6 {[%clk 0:02:39.1]} 3. Qc2 {[%clk 0:02:52.8]} 3... Nf6 {[%clk 0:02:38.9]}
4. d4 {[%clk 0:02:53.2]} 4... a6 {[%clk 0:02:32.7]} 5. cxd5 {[%clk 0:02:52.4]}
5... exd5 {[%clk 0:02:32.6]} 6. Nc3 {[%clk 0:02:53.3]} 6... c6 {[%clk
0:02:29.6]} 7. Bg5 {[%clk 0:02:53.8]} 7... Bg4 {[%clk 0:02:25]} 8. Ne5 {[%clk
0:02:53.3]} 8... Bh5 {[%clk 0:02:24.1]} 9. e3 {[%clk 0:02:51.5]} 9... Be7 {[%clk
0:02:23.7]} 10. Bd3 {[%clk 0:02:52]} 10... Nbd7 {[%clk 0:02:22.7]} 11. O-O
{[%clk 0:02:45.7]} 11... Bg6 {[%clk 0:02:11]} 12. f4 {[%clk 0:02:29.7]} 12...
Bxd3 {[%clk 0:02:08.2]} 13. Qxd3 {[%clk 0:02:28.7]} 13... O-O {[%clk 0:02:05.6]}
14. Rf3 {[%clk 0:02:12.1]} 14... h6 {[%clk 0:02:00.1]} 15. Rh3 {[%clk
0:01:46.2]} 15... Nh7 {[%clk 0:01:16.6]} 16. Bxh6 {[%clk 0:01:18.4]} 16... gxh6
{[%clk 0:01:16.4]} 17. Rxh6 {[%clk 0:01:19]} 17... f5 {[%clk 0:01:07.7]} 18. Ng6
{[%clk 0:00:45.4]} 18... Rf6 {[%clk 0:01:01.7]} 19. Nxe7+ {[%clk 0:00:22.3]}
19... Qxe7 {[%clk 0:01:02.6]} 20. Rh5 {[%clk 0:00:20.2]} 20... Qe6 {[%clk
0:00:59.6]} 21. Rf1 {[%clk 0:00:20.1]} 21... Raf8 {[%clk 0:00:55.1]} 22. Rf3
{[%clk 0:00:20.4]} 22... Rg6 {[%clk 0:00:54.4]} 23. Rfh3 {[%clk 0:00:19.2]}
23... Rg7 {[%clk 0:00:53]} 24. Ne2 {[%clk 0:00:18.9]} 24... Qg6 {[%clk
0:00:43.9]} 25. Ng3 {[%clk 0:00:18.3]} 25... Ndf6 {[%clk 0:00:34.5]} 26. Rh6
{[%clk 0:00:18.7]} 26... Qf7 {[%clk 0:00:14.4]} 27. Nxf5 {[%clk 0:00:19.2]}
27... Rg4 {[%clk 0:00:13.6]} 28. Rxh7 {[%clk 0:00:16]} 28... Qxh7 {[%clk
0:00:06.4]} 29. Rxh7 {[%clk 0:00:15.3]} 29... Kxh7 {[%clk 0:00:05.2]} 30. Ne7+
{[%clk 0:00:14.6]} 30... Kg7 {[%clk 0:00:04]} 31. Nf5+ {[%clk 0:00:14.5]} 31...
Kh8 {[%clk 0:00:03.3]} 32. h3 {[%clk 0:00:14.6]} 32... Rgg8 {[%clk 0:00:03.2]}
33. Nh6 {[%clk 0:00:14.2]} 33... Rg7 {[%clk 0:00:02.9]} 34. g4 {[%clk
0:00:13.8]} 34... Ne4 {[%clk 0:00:02.9]} 35. g5 {[%clk 0:00:14.4]} 35... Nxg5
{[%clk 0:00:02.5]} 36. fxg5 {[%clk 0:00:13.8]} 36... Rxg5+ {[%clk 0:00:03.4]}
37. Kh1 {[%clk 0:00:12.1]} 37... Rf3 {[%clk 0:00:03.5]} 38. Ng4 {[%clk
0:00:10.6]} 38... Rxh3+ {[%clk 0:00:03]} 39. Nh2 {[%clk 0:00:11.1]} 39... Rhg3
{[%clk 0:00:02.1]} 40. Qf1 {[%clk 0:00:10.1]} 40... Kh7 {[%clk 0:00:02.6]} 41.
Qf7+ {[%clk 0:00:09.8]} 41... Kh8 {[%clk 0:00:02.9]} 42. Qf8+ {[%clk 0:00:09.7]}
42... Kh7 {[%clk 0:00:03.3]} 43. Qf7+ {[%clk 0:00:09.6]} 43... Kh8 {[%clk
0:00:03.8]} 44. Qf1 {[%clk 0:00:10.1]} 44... Kh7 {[%clk 0:00:03.8]} 45. Nf3
{[%clk 0:00:08.8]} 45... Rh5+ {[%clk 0:00:04]} 46. Nh2 {[%clk 0:00:09.2]} 46...
Rhg5 {[%clk 0:00:04.4]} 1/2-1/2

[Event "*** SCC Grand Prix: Titled Tuesday Blitz"]
[Site "Chess.com"]
[Date "2020.06.02"]
[Round "1"]
[White "BLITZMASTER"]
[Black "gixfantastix"]
[Result "1-0"]
[WhiteElo "2501"]
[BlackElo "2070"]
[TimeControl "180+1"]
[EndTime "10:07:39 PDT"]
[Termination "BLITZMASTER won by checkmate"]

1. e4 {[%clk 0:03:00.7]} 1... c6 {[%clk 0:02:57.1]} 2. d4 {[%clk 0:02:59.5]}
2... d5 {[%clk 0:02:57.3]} 3. Nc3 {[%clk 0:03:00.4]} 3... dxe4 {[%clk
0:02:57.3]} 4. Nxe4 {[%clk 0:03:01.3]} 4... Bf5 {[%clk 0:02:57.8]} 5. Ng3 {[%clk
0:03:01.4]} 5... Bg6 {[%clk 0:02:57.9]} 6. Bc4 {[%clk 0:03:01]} 6... Nd7 {[%clk
0:02:56.9]} 7. N1e2 {[%clk 0:03:01.6]} 7... Nb6 {[%clk 0:02:53.7]} 8. Bb3 {[%clk
0:03:00.9]} 8... a5 {[%clk 0:02:53.1]} 9. a4 {[%clk 0:02:59.4]} 9... e5 {[%clk
0:02:33.3]} 10. Be3 {[%clk 0:02:41.7]} 10... Nd5 {[%clk 0:02:09.7]} 11. O-O
{[%clk 0:02:34.1]} 11... Nxe3 {[%clk 0:01:48.1]} 12. fxe3 {[%clk 0:02:35]} 12...
Bd6 {[%clk 0:01:46.7]} 13. Nf5 {[%clk 0:02:19.9]} 13... Bxf5 {[%clk 0:01:37.8]}
14. Rxf5 {[%clk 0:02:20.8]} 14... Nh6 {[%clk 0:01:37.4]} 15. Rf3 {[%clk
0:02:12.4]} 15... O-O {[%clk 0:01:29.8]} 16. Ng3 {[%clk 0:02:11]} 16... Qh4
{[%clk 0:00:52.6]} 17. Qd3 {[%clk 0:01:43.3]} 17... Rad8 {[%clk 0:00:51.4]} 18.
Raf1 {[%clk 0:01:30.8]} 18... Rd7 {[%clk 0:00:46.7]} 19. Qe4 {[%clk 0:01:07.2]}
19... Qe7 {[%clk 0:00:20.8]} 20. Nf5 {[%clk 0:00:42.2]} 20... Nxf5 {[%clk
0:00:20.5]} 21. Qxf5 {[%clk 0:00:42.4]} 21... exd4 {[%clk 0:00:21.1]} 22. exd4
{[%clk 0:00:43]} 22... Bc7 {[%clk 0:00:20.4]} 23. c3 {[%clk 0:00:33.4]} 23... b6
{[%clk 0:00:19]} 24. Bc2 {[%clk 0:00:22.3]} 24... g6 {[%clk 0:00:18.5]} 25. Qh3
{[%clk 0:00:19.4]} 25... c5 {[%clk 0:00:18.6]} 26. dxc5 {[%clk 0:00:17]} 26...
Qxc5+ {[%clk 0:00:18.4]} 27. Kh1 {[%clk 0:00:16.5]} 27... Be5 {[%clk 0:00:17.7]}
28. Qxd7 {[%clk 0:00:14.4]} 28... Bg7 {[%clk 0:00:17.1]} 29. Qh3 {[%clk
0:00:13.3]} 29... b5 {[%clk 0:00:17.3]} 30. Bb3 {[%clk 0:00:12.4]} 30... Qc7
{[%clk 0:00:16.3]} 31. Rxf7 {[%clk 0:00:10.4]} 31... Rxf7 {[%clk 0:00:17.2]} 32.
Rxf7 {[%clk 0:00:10.1]} 32... Qxf7 {[%clk 0:00:15]} 33. Bxf7+ {[%clk 0:00:11]}
33... Kxf7 {[%clk 0:00:15]} 34. Qd7+ {[%clk 0:00:11.4]} 34... Kf6 {[%clk
0:00:15.3]} 35. axb5 {[%clk 0:00:12.3]} 35... Bf8 {[%clk 0:00:14.1]} 36. Qc6+
{[%clk 0:00:13.2]} 36... Kg7 {[%clk 0:00:13]} 37. b6 {[%clk 0:00:14.1]} 37...
Kh6 {[%clk 0:00:12.8]} 38. b7 {[%clk 0:00:15]} 38... Bg7 {[%clk 0:00:12.9]} 39.
Qd7 {[%clk 0:00:15.9]} 39... Bf6 {[%clk 0:00:13.4]} 40. Qd2+ {[%clk 0:00:16.3]}
40... Bg5 {[%clk 0:00:13.6]} 41. Qd3 {[%clk 0:00:16.9]} 41... Bc1 {[%clk
0:00:10.9]} 42. Qh3+ {[%clk 0:00:17.8]} 42... Kg5 {[%clk 0:00:10.5]} 43. b8=Q
{[%clk 0:00:18.7]} 43... h5 {[%clk 0:00:10.1]} 44. Qd8+ {[%clk 0:00:19.6]} 44...
Kh6 {[%clk 0:00:09.7]} 45. Qf6 {[%clk 0:00:19.9]} 45... a4 {[%clk 0:00:07]} 46.
Qhf5 {[%clk 0:00:20.3]} 46... Kh7 {[%clk 0:00:03.7]} 47. Q5xg6# {[%clk
0:00:21.2]} 1-0

[Event "*** SCC Grand Prix: Titled Tuesday Blitz"]
[Site "Chess.com"]
[Date "2020.06.02"]
[Round "1"]
[White "Rakesh"]
[Black "vpsetter"]
[Result "1-0"]
[WhiteElo "2334"]
[BlackElo "2640"]
[TimeControl "180+1"]
[EndTime "10:07:40 PDT"]
[Termination "Rakesh won by resignation"]

1. e4 {[%clk 0:03:00.9]} 1... e5 {[%clk 0:02:59.2]} 2. Nf3 {[%clk 0:03:00.7]}
2... Nc6 {[%clk 0:02:59.3]} 3. d4 {[%clk 0:03:01.3]} 3... exd4 {[%clk 0:02:58]}
4. Nxd4 {[%clk 0:03:02.2]} 4... Nf6 {[%clk 0:02:58.4]} 5. Nc3 {[%clk 0:03:00.5]}
5... Bb4 {[%clk 0:02:54.3]} 6. Nxc6 {[%clk 0:02:59.9]} 6... bxc6 {[%clk
0:02:52.3]} 7. Bd3 {[%clk 0:03:00.4]} 7... d5 {[%clk 0:02:50.8]} 8. exd5 {[%clk
0:02:59.6]} 8... cxd5 {[%clk 0:02:51.1]} 9. O-O {[%clk 0:02:59.8]} 9... O-O
{[%clk 0:02:50.9]} 10. Bg5 {[%clk 0:02:59.6]} 10... c6 {[%clk 0:02:45.2]} 11.
Qf3 {[%clk 0:02:57.7]} 11... Be7 {[%clk 0:02:39.4]} 12. Rae1 {[%clk 0:02:56.7]}
12... Be6 {[%clk 0:02:37]} 13. h3 {[%clk 0:02:51.4]} 13... Rb8 {[%clk
0:02:35.5]} 14. b3 {[%clk 0:02:49.3]} 14... h6 {[%clk 0:02:33.7]} 15. Bh4 {[%clk
0:02:43.5]} 15... Rb4 {[%clk 0:02:23.9]} 16. Bg3 {[%clk 0:02:38.6]} 16... Qa5
{[%clk 0:02:05.2]} 17. Ne2 {[%clk 0:02:28.7]} 17... Ne4 {[%clk 0:01:57.3]} 18.
Nf4 {[%clk 0:02:24.2]} 18... Nd2 {[%clk 0:01:41.1]} 19. Qh5 {[%clk 0:02:17]}
19... Nxf1 {[%clk 0:01:30.5]} 20. Nxe6 {[%clk 0:02:10.9]} 20... Nxg3 {[%clk
0:01:03.5]} 21. fxg3 {[%clk 0:02:03.6]} 21... Rh4 {[%clk 0:00:42.1]} 22. Qe2
{[%clk 0:01:51.3]} 22... fxe6 {[%clk 0:00:25.8]} 23. Qxe6+ {[%clk 0:01:49]}
23... Rf7 {[%clk 0:00:23.7]} 24. gxh4 {[%clk 0:01:48.9]} 24... Bxh4 {[%clk
0:00:18.1]} 25. Rf1 {[%clk 0:01:44]} 25... Qc5+ {[%clk 0:00:16.4]} 26. Kh1
{[%clk 0:01:41.2]} 26... Qe7 {[%clk 0:00:15.8]} 27. Bh7+ {[%clk 0:01:36.4]}
27... Kf8 {[%clk 0:00:15.8]} 28. Qc8+ {[%clk 0:01:30.8]} 28... Qd8 {[%clk
0:00:13.9]} 29. Rxf7+ {[%clk 0:01:28.4]} 29... Kxf7 {[%clk 0:00:13.9]} 30. Qxc6
{[%clk 0:01:29.3]} 30... Bf6 {[%clk 0:00:09.9]} 31. Bf5 {[%clk 0:01:25.3]} 31...
d4 {[%clk 0:00:06]} 32. Qe6+ {[%clk 0:01:24.5]} 32... Kf8 {[%clk 0:00:06.3]} 33.
Bg6 {[%clk 0:01:22.6]} 33... Qe7 {[%clk 0:00:06.4]} 34. Qc8+ {[%clk 0:01:22.3]}
34... Qd8 {[%clk 0:00:06.6]} 35. Qb7 {[%clk 0:01:00.6]} 35... Qe7 {[%clk
0:00:06.6]} 36. Qb8+ {[%clk 0:01:01.1]} 36... Qd8 {[%clk 0:00:05.7]} 37. Qxa7
{[%clk 0:01:01.6]} 37... Qe7 {[%clk 0:00:04.7]} 38. Qa8+ {[%clk 0:01:00.4]}
38... Qd8 {[%clk 0:00:04.6]} 39. Qe4 {[%clk 0:01:00.4]} 39... Qe7 {[%clk
0:00:04.4]} 40. a4 {[%clk 0:00:58.6]} 40... Qxe4 {[%clk 0:00:02.8]} 41. Bxe4
{[%clk 0:00:59.5]} 41... Bd8 {[%clk 0:00:03]} 42. b4 {[%clk 0:00:59.3]} 42...
Ke7 {[%clk 0:00:02.9]} 43. a5 {[%clk 0:00:59.1]} 43... Kd6 {[%clk 0:00:03.2]}
44. g4 {[%clk 0:00:56.3]} 44... Ke5 {[%clk 0:00:03.4]} 45. Bd3 {[%clk
0:00:56.1]} 45... Kd5 {[%clk 0:00:02.6]} 46. Kg2 {[%clk 0:00:55.1]} 46... Kc6
{[%clk 0:00:02.2]} 47. Kf3 {[%clk 0:00:54.8]} 47... Kb7 {[%clk 0:00:01.4]} 48.
Ke4 {[%clk 0:00:53.4]} 48... Be7 {[%clk 0:00:01.9]} 49. b5 {[%clk 0:00:53.3]}
49... Bb4 {[%clk 0:00:02.1]} 50. a6+ {[%clk 0:00:53.4]} 50... Kb6 {[%clk
0:00:02.4]} 51. Kxd4 {[%clk 0:00:54.3]} 51... Be7 {[%clk 0:00:02.4]} 52. c4
{[%clk 0:00:54.3]} 52... Bh4 {[%clk 0:00:02.4]} 53. c5+ {[%clk 0:00:53.9]} 1-0

[Event "*** SCC Grand Prix: Titled Tuesday Blitz"]
[Site "Chess.com"]
[Date "2020.06.02"]
[Round "1"]
[White "wild_cat99"]
[Black "FeketeBarika"]
[Result "1-0"]
[WhiteElo "2572"]
[BlackElo "2230"]
[TimeControl "180+1"]
[EndTime "10:07:40 PDT"]
[Termination "wild_cat99 won on time"]

1. Nf3 {[%clk 0:02:59.4]} 1... e6 {[%clk 0:03:00.9]} 2. e3 {[%clk 0:02:58.8]}
2... d5 {[%clk 0:02:56.4]} 3. c4 {[%clk 0:02:58.6]} 3... Nf6 {[%clk 0:02:56.2]}
4. b3 {[%clk 0:02:57.9]} 4... Be7 {[%clk 0:02:55.9]} 5. Bb2 {[%clk 0:02:56.8]}
5... O-O {[%clk 0:02:52.6]} 6. g3 {[%clk 0:02:56.6]} 6... c6 {[%clk 0:02:33.7]}
7. Bg2 {[%clk 0:02:55.4]} 7... Nbd7 {[%clk 0:02:31.8]} 8. O-O {[%clk 0:02:55.2]}
8... Re8 {[%clk 0:02:28.3]} 9. Qe2 {[%clk 0:02:51.1]} 9... Bd6 {[%clk
0:02:24.5]} 10. d4 {[%clk 0:02:35.9]} 10... Qe7 {[%clk 0:02:19.7]} 11. Ne5
{[%clk 0:02:15.7]} 11... Bxe5 {[%clk 0:02:15.1]} 12. dxe5 {[%clk 0:02:16.6]}
12... Ne4 {[%clk 0:02:15.4]} 13. Bxe4 {[%clk 0:02:09.4]} 13... dxe4 {[%clk
0:02:13.3]} 14. Nd2 {[%clk 0:02:10.3]} 14... f5 {[%clk 0:01:36.3]} 15. exf6
{[%clk 0:02:11.2]} 15... Nxf6 {[%clk 0:01:22.9]} 16. Bxf6 {[%clk 0:02:10.7]}
16... Qxf6 {[%clk 0:01:23.8]} 17. Nxe4 {[%clk 0:02:11.6]} 17... Qg6 {[%clk
0:01:22.9]} 18. Nd6 {[%clk 0:02:06.5]} 18... Rf8 {[%clk 0:01:16.7]} 19. e4
{[%clk 0:02:03]} 19... Bd7 {[%clk 0:01:03.7]} 20. Nxb7 {[%clk 0:01:58]} 20... e5
{[%clk 0:00:57.4]} 21. Nc5 {[%clk 0:01:57.7]} 21... Bh3 {[%clk 0:00:27.9]} 22.
Rfe1 {[%clk 0:01:56.8]} 22... Bg4 {[%clk 0:00:22.5]} 23. Qb2 {[%clk 0:01:47.5]}
23... Qh5 {[%clk 0:00:12.1]} 24. Nd3 {[%clk 0:01:45.4]} 24... Rae8 {[%clk
0:00:09.5]} 25. Re3 {[%clk 0:01:42.3]} 25... Bf3 {[%clk 0:00:09.6]} 26. Ne1
{[%clk 0:01:40.6]} 26... Bg4 {[%clk 0:00:09.8]} 27. c5 {[%clk 0:01:30.2]} 27...
Bh3 {[%clk 0:00:09.5]} 28. b4 {[%clk 0:01:29.3]} 28... Rf6 {[%clk 0:00:07.7]}
29. Qe2 {[%clk 0:01:26.5]} 29... Qh6 {[%clk 0:00:06.8]} 30. a4 {[%clk
0:01:18.2]} 30... Ref8 {[%clk 0:00:06.6]} 31. f3 {[%clk 0:01:18.6]} 31... Bd7
{[%clk 0:00:05.8]} 32. b5 {[%clk 0:01:12.7]} 32... cxb5 {[%clk 0:00:04.8]} 33.
axb5 {[%clk 0:01:13.6]} 33... Bxb5 {[%clk 0:00:04.7]} 34. Qf2 {[%clk 0:01:14.1]}
34... Bc6 {[%clk 0:00:04.3]} 35. Rxa7 {[%clk 0:01:12.1]} 35... Qg6 {[%clk
0:00:03.3]} 36. Nd3 {[%clk 0:01:09.7]} 36... Qe8 {[%clk 0:00:01.2]} 37. Qa2+
{[%clk 0:00:58.6]} 37... Re6 {[%clk 0:00:02.1]} 38. Nxe5 {[%clk 0:00:57]} 38...
Bb5 {[%clk 0:00:02.2]} 39. f4 {[%clk 0:00:51.7]} 39... h6 {[%clk 0:00:01.7]} 40.
f5 {[%clk 0:00:50.5]} 40... Kh7 {[%clk 0:00:02.3]} 41. fxe6 {[%clk 0:00:49.8]}
41... Qd8 {[%clk 0:00:02.4]} 42. Nd7 {[%clk 0:00:43.3]} 42... Qg5 {[%clk
0:00:01.5]} 43. Nxf8+ {[%clk 0:00:41.4]} 43... Kh8 {[%clk 0:00:01.7]} 44. Rf3
{[%clk 0:00:35.4]} 44... Qc1+ {[%clk 0:00:01.7]} 45. Kg2 {[%clk 0:00:35.6]} 1-0